[Event "XII Paracin Festival 2019"]
[Site "Paracin"]
[Date "2019.07.06"]
[Round "2.2"]
[White "Chen, Peng"]
[Black "Perunovic, Milos"]
[Result "1-0"]
[ECO "B82"]
[WhiteElo "2328"]
[BlackElo "2597"]
[Annotator "ChessBase"]
[PlyCount "97"]
[EventDate "2019.07.05"]
[EventType "swiss"]
[EventCountry "SRB"]
[SourceTitle "playchess.com"]
[Source "ChessBase"]
[SourceQuality "1"]
[TimeControl "5400+30"]

1. e4 {[%emt 0:00:00]} c5 {[%emt 0:00:00]} 2. Nf3 {[%emt 0:00:00]} e6 {[%emt 0:00:16]} 3. d4 {[%emt 0:00:11]} cxd4 {[%emt 0:00:09]} 4. Nxd4 {[%emt 0:00:03]} Nf6 {[%emt 0:00:34]} 5. Nc3 {[%emt 0:00:13]} d6 {[%emt 0:00:07]} 6. f4 {[%emt 0:00:31]} Be7 {[%emt 0:00:38]} 7. Be3 {[%emt 0:06:08]} O-O {[%emt 0:01:17]} 8. Qf3 {[%emt 0:00:08]} e5 {[%emt 0:00:30]} 9. Nf5 {[%emt 0:08:12]} Bxf5 {[%emt 0:00:25]} 10. exf5 {[%emt 0:00:01]} Nbd7 {[%emt 0:00:19]} 11. g4 {[%emt 0:09:42]} exf4 {[%emt 0:20:18]} 12. Qxf4 {[%emt 0:03:49]} Rc8 {[%emt 0:07:54]} 13. O-O-O {[%emt 0:11:28]} Rxc3 {[%emt 0:05:37]} 14. bxc3 {[%emt 0:00:00]} d5 {[%emt 0:00:12]} 15. Bg2 {[%emt 0:22:01]} Ba3+ {[%emt 0:17:44]} 16. Kb1 {[%emt 0:18:43]} Qa5 {[%emt 0:04:03]} 17. Bc1 {[%emt 0:00:04]} Bxc1 {[%emt 0:06:33]} 18. Rxc1 {[%emt 0:02:30]} Qxc3 {[%emt 0:09:59]} 19. g5 {[%emt 0:01:43]} Ne4 {[%emt 0:05:21]} 20. Bxe4 {[%emt 0:00:01]} Qb4+ {[%emt 0:07:26]} 21. Ka1 {[%emt 0:00:01]} Qc3+ {[%emt 0:06:25]} 22. Kb1 {[%emt 0:00:01]} dxe4 {[%emt 0:01:34]} 23. Rhe1 {[%emt 0:07:58]} Qb4+ {[%emt 0:00:11]} 24. Ka1 {[%emt 0:00:01]} Qc3+ {[%emt 0:00:56]} 25. Kb1 {[%emt 0:00:01]} Nc5 {[%emt 0:00:30]} 26. Rxe4 {[%emt 0:00:55]} Nxe4 {[%emt 0:00:44]} 27. Qxe4 {[%emt 0:00:01]} g6 {[%emt 0:01:40]} 28. f6 {[%emt 0:02:49]} h5 {[%emt 0:00:17]} 29. Rd1 {[%emt 0:01:29]} Rc8 {[%emt 0:00:14]} 30. h4 {[%emt 0:03:14]} a5 {[%emt 0:00:57]} 31. Rd7 {[%emt 0:00:48]} Qa3 {[%emt 0:01:33]} 32. Qe7 {[%emt 0:00:53]} Qb4+ {[%emt 0:00:41]} 33. Qxb4 {[%emt 0:00:32]} axb4 {[%emt 0:00:05]} 34. Rxb7 {[%emt 0:00:18]} Rc4 {[%emt 0:00:23]} 35. Rb8+ {[%emt 0:00:04]} Kh7 {[%emt 0:00:04]} 36. Rf8 {[%emt 0:00:02]} Rc7 {[%emt 0:00:36]} 37. Re8 {[%emt 0:02:56]} Rc4 {[%emt 0:00:05]} 38. Re7 {[%emt 0:00:17]} Kg8 {[%emt 0:00:01]} 39. Re8+ {[%emt 0:00:57]} Kh7 {[%emt 0:00:01]} 40. Kb2 b3 {[%emt 0:02:41]} 41. Re7 {[%emt 0:00:18]} bxc2 {[%emt 0:00:10]} 42. Rxf7+ {[%emt 0:00:06]} Kh8 {[%emt 0:00:19]} 43. Kc1 {[%emt 0:00:16]} Rxh4 {[%emt 0:00:05]} 44. Rg7 {[%emt 0:00:43]} Rc4 {[%emt 0:01:17]} 45. Rxg6 {[%emt 0:00:10]} h4 {[%emt 0:00:18]} 46. Rh6+ {[%emt 0:00:22]} Kg8 {[%emt 0:00:01]} 47. g6 {[%emt 0:00:18]} Rf4 {[%emt 0:00:32]} 48. g7 {[%emt 0:00:20]} Kf7 {[%emt 0:00:07]} 49. Rh8 {[%emt 0:00:11]} 1-0

[Event "XII Paracin Festival 2019"]
[Site "Paracin"]
[Date "2019.07.06"]
[Round "2.3"]
[White "Svetushkin, Dmitry"]
[Black "Krasteva, Beloslava"]
[Result "1-0"]
[ECO "B50"]
[WhiteElo "2528"]
[BlackElo "2327"]
[Annotator "ChessBase"]
[PlyCount "67"]
[EventDate "2019.07.05"]
[EventType "swiss"]
[EventCountry "SRB"]
[SourceTitle "playchess.com"]
[Source "ChessBase"]
[SourceQuality "1"]
[TimeControl "5400+30"]

1. e4 {[%emt 0:00:55]} c5 {[%emt 0:00:00]} 2. Nf3 {[%emt 0:00:32]} d6 {[%emt 0:00:10]} 3. c3 {[%emt 0:00:25]} Nf6 {[%emt 0:00:47]} 4. h3 {[%emt 0:00:30]} g6 {[%emt 0:00:34]} 5. Bd3 {[%emt 0:00:51]} Bg7 {[%emt 0:00:45]} 6. Bc2 {[%emt 0:00:17]} e5 {[%emt 0:00:33]} 7. d4 {[%emt 0:01:05]} exd4 {[%emt 0:01:17]} 8. cxd4 {[%emt 0:00:08]} O-O {[%emt 0:00:58]} 9. Nc3 {[%emt 0:08:26]} Nc6 {[%emt 0:04:53]} 10. dxc5 {[%emt 0:08:02]} dxc5 {[%emt 0:00:49]} 11. Be3 {[%emt 0:00:06]} Qa5 {[%emt 0:05:13]} 12. O-O {[%emt 0:03:05]} Rd8 {[%emt 0:02:01]} 13. Nd5 {[%emt 0:08:45]} Nxd5 {[%emt 0:05:37]} 14. exd5 {[%emt 0:00:07]} Nb4 {[%emt 0:01:18]} 15. Bb3 {[%emt 0:00:21]} Bf5 {[%emt 0:08:02]} 16. d6 {[%emt 0:01:00]} Rac8 {[%emt 0:03:55]} 17. Rc1 {[%emt 0:09:25]} Nd3 {[%emt 0:05:17]} 18. Bxf7+ {[%emt 0:05:13]} Kxf7 {[%emt 0:03:08]} 19. Qb3+ {[%emt 0:00:29]} Ke8 {[%emt 0:12:51]} 20. Qg8+ {[%emt 0:05:23]} Bf8 {[%emt 0:01:33]} 21. b4 {[%emt 0:22:17]} Qxb4 {[%emt 0:08:00]} 22. Rb1 {[%emt 0:01:39]} Qc3 {[%emt 0:03:08]} 23. Bg5 {[%emt 0:04:48]} Rxd6 {[%emt 0:05:09]} 24. Rxb7 {[%emt 0:03:25]} Rd7 {[%emt 0:04:06]} 25. Rb3 {[%emt 0:00:07]} Qg7 {[%emt 0:01:49]} 26. Qc4 {[%emt 0:02:08]} Be7 {[%emt 0:01:58]} 27. g4 {[%emt 0:01:37]} Bxg5 {[%emt 0:01:48]} 28. gxf5 {[%emt 0:00:04]} gxf5 {[%emt 0:03:49]} 29. Rxd3 {[%emt 0:00:12]} Rxd3 {[%emt 0:06:01]} 30. Qxd3 {[%emt 0:00:16]} Bf4+ {[%emt 0:01:27]} 31. Kh1 {[%emt 0:00:08]} Qb7 {[%emt 0:00:28]} 32. Re1+ {[%emt 0:01:31]} Kf7 {[%emt 0:02:47]} 33. Qxf5+ {[%emt 0:00:08]} Kg7 {[%emt 0:00:42]} 34. Rg1+ {[%emt 0:00:08]} 1-0

[Event "XII Paracin Festival 2019"]
[Site "Paracin"]
[Date "2019.07.06"]
[Round "2.4"]
[White "Maksimovic, Bojan"]
[Black "Tan, Justin"]
[Result "1/2-1/2"]
[ECO "B15"]
[WhiteElo "2326"]
[BlackElo "2513"]
[Annotator "ChessBase"]
[PlyCount "73"]
[EventDate "2019.07.05"]
[EventType "swiss"]
[EventCountry "SRB"]
[SourceTitle "playchess.com"]
[Source "ChessBase"]
[SourceQuality "1"]
[TimeControl "5400+30"]

1. e4 {[%emt 0:00:00]} c6 {[%emt 0:05:30]} 2. d4 {[%emt 0:00:00]} d5 {[%emt 0:00:06]} 3. Nc3 {[%emt 0:00:00]} g6 {[%emt 0:01:12]} 4. Nf3 {[%emt 0:00:51]} Bg7 {[%emt 0:00:18]} 5. Be3 {[%emt 0:03:34]} dxe4 {[%emt 0:09:55]} 6. Nxe4 {[%emt 0:00:07]} Nf6 {[%emt 0:00:02]} 7. Bd3 {[%emt 0:02:26]} O-O {[%emt 0:01:29]} 8. Qd2 {[%emt 0:02:16]} Nxe4 {[%emt 0:05:11]} 9. Bxe4 {[%emt 0:00:03]} Nd7 {[%emt 0:00:08]} 10. O-O {[%emt 0:09:29]} a5 {[%emt 0:05:01]} 11. c3 {[%emt 0:03:18]} Nb6 {[%emt 0:04:02]} 12. Bh6 {[%emt 0:08:34]} Nc4 {[%emt 0:01:11]} 13. Qc1 {[%emt 0:01:46]} f6 {[%emt 0:04:26]} 14. Re1 {[%emt 0:08:17]} Nd6 {[%emt 0:11:05]} 15. Bc2 {[%emt 0:02:42]} Bf5 {[%emt 0:04:06]} 16. Bf4 {[%emt 0:09:58]} Qd7 {[%emt 0:08:51]} 17. Bxd6 exd6 {[%emt 0:00:12]} 18. d5 {[%emt 0:14:20]} Rfe8 {[%emt 0:09:28]} 19. Qd2 {[%emt 0:06:43]} Bxc2 {[%emt 0:03:59]} 20. Qxc2 {[%emt 0:00:07]} f5 {[%emt 0:00:40]} 21. Qb3 {[%emt 0:02:16]} c5 {[%emt 0:01:06]} 22. Ng5 {[%emt 0:03:16]} a4 {[%emt 0:00:06]} 23. Qc2 {[%emt 0:02:01]} Be5 {[%emt 0:03:56]} 24. Ne6 {[%emt 0:01:43]} f4 {[%emt 0:00:01]} 25. Rad1 {[%emt 0:04:10]} Qf7 {[%emt 0:00:59]} 26. Re4 {[%emt 0:02:10]} a3 {[%emt 0:02:44]} 27. b3 {[%emt 0:01:48]} f3 {[%emt 0:00:02]} 28. g3 {[%emt 0:00:41]} Qf5 {[%emt 0:01:34]} 29. Qd3 {[%emt 0:00:04]} Re7 {[%emt 0:00:35]} 30. Re3 {[%emt 0:02:15]} Rf7 {[%emt 0:01:48]} 31. Qxf5 {[%emt 0:01:45]} Rxf5 {[%emt 0:00:00]} 32. Rdd3 {[%emt 0:01:49]} b5 {[%emt 0:00:05]} 33. c4 {[%emt 0:01:40]} bxc4 {[%emt 0:00:18]} 34. bxc4 {[%emt 0:00:01]} Bb2 {[%emt 0:00:16]} 35. Rxf3 {[%emt 0:00:23]} Ra4 {[%emt 0:00:24]} 36. g4 {[%emt 0:04:09]} Rf7 37. Rb3 1/2-1/2

[Event "XII Paracin Festival 2019"]
[Site "Paracin"]
[Date "2019.07.06"]
[Round "2.5"]
[White "Vishnu Prasanna. V"]
[Black "Lazov, Toni"]
[Result "1/2-1/2"]
[ECO "E70"]
[WhiteElo "2505"]
[BlackElo "2313"]
[Annotator "ChessBase"]
[PlyCount "91"]
[EventDate "2019.07.05"]
[EventType "swiss"]
[EventCountry "SRB"]
[SourceTitle "playchess.com"]
[Source "ChessBase"]
[SourceQuality "1"]
[TimeControl "5400+30"]

1. d4 {[%emt 0:00:23]} Nf6 {[%emt 0:01:00]} 2. c4 {[%emt 0:00:10]} g6 {[%emt 0:00:15]} 3. Nc3 {[%emt 0:00:06]} Bg7 {[%emt 0:00:03]} 4. e4 {[%emt 0:00:09]} d6 {[%emt 0:00:10]} 5. Bd3 {[%emt 0:00:28]} O-O {[%emt 0:00:37]} 6. Nge2 {[%emt 0:00:06]} c5 {[%emt 0:03:31]} 7. d5 {[%emt 0:00:13]} Ng4 {[%emt 0:04:04]} 8. f4 {[%emt 0:06:01]} e6 {[%emt 0:00:54]} 9. h3 {[%emt 0:00:17]} Bxc3+ {[%emt 0:18:13]} 10. bxc3 {[%emt 0:00:50]} Qh4+ {[%emt 0:00:36]} 11. g3 {[%emt 0:02:42]} Qh5 {[%emt 0:00:50]} 12. Ng1 {[%emt 0:18:15]} Nf2 {[%emt 0:18:31]} 13. Qxh5 {[%emt 0:00:40]} Nxd3+ {[%emt 0:00:01]} 14. Kd2 {[%emt 0:00:10]} gxh5 {[%emt 0:00:03]} 15. Kxd3 {[%emt 0:00:05]} b5 {[%emt 0:00:33]} 16. cxb5 {[%emt 0:04:43]} exd5 {[%emt 0:00:06]} 17. exd5 {[%emt 0:00:29]} Bf5+ {[%emt 0:02:05]} 18. Ke2 {[%emt 0:00:19]} Re8+ {[%emt 0:04:47]} 19. Kf2 {[%emt 0:05:57]} Nd7 {[%emt 0:01:29]} 20. g4 {[%emt 0:06:20]} Bd3 {[%emt 0:05:07]} 21. Nf3 {[%emt 0:11:55]} Re2+ {[%emt 0:01:16]} 22. Kg3 {[%emt 0:00:04]} Nf6 {[%emt 0:03:01]} 23. a4 {[%emt 0:04:04]} hxg4 {[%emt 0:11:33]} 24. hxg4 {[%emt 0:00:33]} Rae8 {[%emt 0:03:03]} 25. f5 {[%emt 0:03:50]} R8e4 {[%emt 0:04:37]} 26. Bf4 {[%emt 0:04:08]} Nxd5 {[%emt 0:04:48]} 27. Bxd6 {[%emt 0:04:17]} Ne3 {[%emt 0:04:23]} 28. Ne5 {[%emt 0:01:22]} Nc4 {[%emt 0:06:31]} 29. Nxc4 {[%emt 0:06:41]} Rxc4 {[%emt 0:00:01]} 30. Rhe1 {[%emt 0:06:01]} Rxc3 {[%emt 0:00:22]} 31. Be5 {[%emt 0:00:09]} Rb3 {[%emt 0:01:13]} 32. Rxe2 {[%emt 0:00:31]} Bxe2+ {[%emt 0:00:01]} 33. Kf2 {[%emt 0:00:05]} Bxg4 {[%emt 0:00:57]} 34. Rc1 {[%emt 0:00:12]} Rf3+ {[%emt 0:00:54]} 35. Kg2 {[%emt 0:00:13]} Rxf5 {[%emt 0:00:01]} 36. Rxc5 {[%emt 0:00:11]} f6 {[%emt 0:00:30]} 37. Rc8+ {[%emt 0:01:20]} Kf7 {[%emt 0:00:03]} 38. Rc7+ {[%emt 0:00:04]} Kg6 {[%emt 0:00:58]} 39. Bg3 {[%emt 0:00:45]} Bf3+ {[%emt 0:00:47]} 40. Kg1 {[%emt 0:00:05]} a6 {[%emt 0:01:16]} 41. b6 {[%emt 0:02:35]} Ra5 {[%emt 0:00:02]} 42. b7 {[%emt 0:00:36]} Bxb7 {[%emt 0:00:02]} 43. Rxb7 {[%emt 0:00:06]} Rxa4 {[%emt 0:00:03]} 44. Ra7 {[%emt 0:00:28]} h5 {[%emt 0:00:20]} 45. Kg2 {[%emt 0:00:07]} Ra2+ {[%emt 0:01:13]} 46. Kf3 1/2-1/2

[Event "XII Paracin Festival 2019"]
[Site "Paracin"]
[Date "2019.07.06"]
[Round "2.6"]
[White "Dedebas, Emre Emin"]
[Black "Savic, Miodrag R"]
[Result "1/2-1/2"]
[ECO "D38"]
[WhiteElo "2301"]
[BlackElo "2503"]
[Annotator "ChessBase"]
[PlyCount "116"]
[EventDate "2019.07.05"]
[EventType "swiss"]
[EventCountry "SRB"]
[SourceTitle "playchess.com"]
[Source "ChessBase"]
[SourceQuality "1"]
[TimeControl "5400+30"]

1. d4 {[%emt 0:00:00]} Nf6 {[%emt 0:00:00]} 2. c4 {[%emt 0:00:00]} e6 {[%emt 0:00:00]} 3. Nf3 {[%emt 0:00:00]} d5 {[%emt 0:00:00]} 4. Nc3 {[%emt 0:00:00]} Bb4 {[%emt 0:00:10]} 5. Qa4+ {[%emt 0:00:13]} Nc6 {[%emt 0:00:02]} 6. e3 {[%emt 0:00:22]} O-O {[%emt 0:00:58]} 7. Bd2 {[%emt 0:00:07]} a6 {[%emt 0:02:26]} 8. Qc2 {[%emt 0:12:58]} Re8 {[%emt 0:10:55]} 9. a3 {[%emt 0:07:26]} Bd6 {[%emt 0:01:41]} 10. Bd3 {[%emt 0:05:28]} h6 11. c5 {[%emt 0:36:10]} Bf8 {[%emt 0:11:50]} 12. b4 {[%emt 0:01:38]} e5 {[%emt 0:05:00]} 13. dxe5 {[%emt 0:00:48]} Ng4 {[%emt 0:03:43]} 14. Ne2 {[%emt 0:03:40]} Ngxe5 {[%emt 0:01:29]} 15. Nxe5 Nxe5 {[%emt 0:00:03]} 16. Bc3 {[%emt 0:02:58]} Nxd3+ 17. Qxd3 {[%emt 0:00:06]} Qg5 {[%emt 0:09:11]} 18. O-O {[%emt 0:02:03]} c6 {[%emt 0:01:46]} 19. f4 {[%emt 0:06:28]} Qf5 {[%emt 0:23:19]} 20. Qd2 {[%emt 0:04:37]} Qg6 {[%emt 0:04:25]} 21. Bd4 {[%emt 0:04:33]} Bf5 {[%emt 0:00:58]} 22. Ng3 {[%emt 0:01:08]} a5 {[%emt 0:00:22]} 23. Nxf5 {[%emt 0:08:29]} Qxf5 {[%emt 0:00:02]} 24. Qc3 {[%emt 0:00:07]} axb4 {[%emt 0:04:14]} 25. axb4 {[%emt 0:00:02]} h5 {[%emt 0:02:05]} 26. Rxa8 {[%emt 0:01:25]} Rxa8 {[%emt 0:00:01]} 27. Ra1 {[%emt 0:00:07]} Re8 {[%emt 0:01:37]} 28. Ra7 {[%emt 0:00:21]} Qc8 {[%emt 0:04:39]} 29. Qa1 {[%emt 0:00:54]} g6 {[%emt 0:05:40]} 30. h3 {[%emt 0:00:43]} Kh7 {[%emt 0:00:54]} 31. Be5 {[%emt 0:01:42]} Be7 {[%emt 0:01:27]} 32. Qa5 {[%emt 0:00:52]} Bd8 {[%emt 0:00:53]} 33. Qa1 {[%emt 0:00:23]} Bc7 {[%emt 0:00:58]} 34. Bd4 {[%emt 0:00:25]} Rg8 {[%emt 0:01:54]} 35. Qe1 {[%emt 0:00:27]} Qb8 {[%emt 0:00:28]} 36. Qa1 {[%emt 0:00:36]} Re8 {[%emt 0:00:28]} 37. Ra3 {[%emt 0:00:42]} Qc8 {[%emt 0:00:55]} 38. Ra7 {[%emt 0:00:13]} Bb8 {[%emt 0:02:01]} 39. Ra8 {[%emt 0:00:07]} Qe6 {[%emt 0:00:49]} 40. Qb1 {[%emt 0:00:54]} Bc7 {[%emt 0:01:05]} 41. f5 {[%emt 0:00:40]} Qd7 {[%emt 0:00:21]} 42. fxg6+ {[%emt 0:00:18]} fxg6 {[%emt 0:00:01]} 43. Rxe8 {[%emt 0:00:06]} Qxe8 {[%emt 0:00:01]} 44. Qf1 {[%emt 0:00:06]} Be5 {[%emt 0:01:28]} 45. Qa1 {[%emt 0:01:16]} Bxd4 {[%emt 0:01:19]} 46. Qxd4 {[%emt 0:00:01]} Qe6 {[%emt 0:00:20]} 47. Qf4 {[%emt 0:00:42]} Qe7 {[%emt 0:00:22]} 48. Kf2 {[%emt 0:00:14]} Kg7 {[%emt 0:00:08]} 49. Ke2 {[%emt 0:00:45]} g5 {[%emt 0:01:12]} 50. Qd4+ {[%emt 0:00:30]} Qf6 {[%emt 0:00:19]} 51. Kd3 {[%emt 0:01:07]} Kg6 {[%emt 0:00:01]} 52. Qxf6+ Kxf6 {[%emt 0:00:01]} 53. e4 {[%emt 0:01:02]} Ke5 {[%emt 0:00:06]} 54. exd5 {[%emt 0:00:03]} Kxd5 {[%emt 0:00:22]} 55. g3 {[%emt 0:00:23]} Ke5 {[%emt 0:00:38]} 56. Ke3 {[%emt 0:00:06]} Kd5 {[%emt 0:00:33]} 57. Kd3 {[%emt 0:00:07]} Ke5 {[%emt 0:01:04]} 58. Ke3 {[%emt 0:00:01]} Kd5 {[%emt 0:00:31] Ke4+} 1/2-1/2

[Event "XII Paracin Festival 2019"]
[Site "Paracin"]
[Date "2019.07.06"]
[Round "2.7"]
[White "Asadli, Vugar"]
[Black "Peng, Shunkai"]
[Result "1-0"]
[ECO "B23"]
[WhiteElo "2502"]
[BlackElo "2300"]
[Annotator "ChessBase"]
[PlyCount "39"]
[EventDate "2019.07.05"]
[EventType "swiss"]
[EventCountry "SRB"]
[SourceTitle "playchess.com"]
[Source "ChessBase"]
[SourceQuality "1"]
[TimeControl "5400+30"]

1. e4 {[%emt 0:06:09]} c5 {[%emt 0:00:47]} 2. Nc3 {[%emt 0:00:05]} a6 {[%emt 0:01:19]} 3. g3 {[%emt 0:02:36]} b5 {[%emt 0:10:17]} 4. Bg2 {[%emt 0:00:12]} Bb7 {[%emt 0:00:12]} 5. Nge2 {[%emt 0:00:40]} e6 {[%emt 0:01:46]} 6. d4 {[%emt 0:00:17]} cxd4 {[%emt 0:08:08]} 7. Nxd4 {[%emt 0:00:12]} Nf6 {[%emt 0:00:17]} 8. O-O {[%emt 0:00:05]} Qc7 {[%emt 0:15:02]} 9. Re1 {[%emt 0:01:58]} h5 {[%emt 0:05:12]} 10. Bf4 {[%emt 0:17:23]} d6 {[%emt 0:09:20]} 11. e5 {[%emt 0:13:36]} dxe5 {[%emt 0:17:01]} 12. Bxe5 {[%emt 0:08:16]} Qc8 {[%emt 0:05:42]} 13. Bxf6 {[%emt 0:04:22]} gxf6 {[%emt 0:03:50]} 14. Nd5 {[%emt 0:02:27]} Nd7 {[%emt 0:02:23]} 15. Qe2 {[%emt 0:04:07]} Kd8 {[%emt 0:03:11]} 16. Nxe6+ {[%emt 0:00:57]} fxe6 {[%emt 0:01:39]} 17. Qxe6 {[%emt 0:00:58]} Bc5 {[%emt 0:00:58]} 18. Rad1 {[%emt 0:01:30]} Bxd5 {[%emt 0:05:15]} 19. Rxd5 {[%emt 0:01:29]} Ra7 {[%emt 0:00:42]} 20. Bh3 {[%emt 0:01:24]} 1-0

[Event "XII Paracin Festival 2019"]
[Site "Paracin"]
[Date "2019.07.06"]
[Round "2.8"]
[White "Wong, Jianwen"]
[Black "Stojanovic, Mihajlo"]
[Result "0-1"]
[ECO "A11"]
[WhiteElo "2301"]
[BlackElo "2483"]
[Annotator "ChessBase"]
[PlyCount "99"]
[EventDate "2019.07.05"]
[EventType "swiss"]
[EventCountry "SRB"]
[SourceTitle "playchess.com"]
[Source "ChessBase"]
[SourceQuality "1"]
[TimeControl "5400+30"]

1. c4 {[%emt 0:00:00]} c6 {[%emt 0:00:00]} 2. Nf3 {[%emt 0:00:47]} d5 {[%emt 0:00:00]} 3. g3 {[%emt 0:02:37]} dxc4 {[%emt 0:00:12]} 4. Bg2 {[%emt 0:02:53]} b5 {[%emt 0:08:41]} 5. O-O {[%emt 0:03:39]} Bb7 {[%emt 0:00:50]} 6. Nc3 {[%emt 0:04:02]} e6 {[%emt 0:07:46]} 7. d3 {[%emt 0:03:13]} cxd3 {[%emt 0:00:45]} 8. Ne5 {[%emt 0:00:17]} Nd7 {[%emt 0:11:28]} 9. Nxd3 {[%emt 0:08:04]} a6 {[%emt 0:06:38]} 10. Be3 {[%emt 0:16:41]} Ngf6 {[%emt 0:00:33]} 11. Ne4 {[%emt 0:08:44]} Nxe4 {[%emt 0:05:07]} 12. Bxe4 {[%emt 0:00:41]} Be7 {[%emt 0:04:42]} 13. Rc1 {[%emt 0:02:25]} Rc8 {[%emt 0:02:27]} 14. Qc2 {[%emt 0:07:05]} Qc7 {[%emt 0:10:37]} 15. Nc5 {[%emt 0:09:34]} Nxc5 16. Bxc5 {[%emt 0:00:30]} Bxc5 17. Qxc5 {[%emt 0:00:30]} Qe7 18. Qa7 {[%emt 0:00:30]} Rc7 19. Bxc6+ {[%emt 0:10:36]} Bxc6 {[%emt 0:24:46]} 20. Qb6 {[%emt 0:02:35]} O-O {[%emt 0:01:03]} 21. Rxc6 {[%emt 0:00:17]} Rxc6 {[%emt 0:00:09]} 22. Qxc6 {[%emt 0:00:01]} Qb4 {[%emt 0:00:18]} 23. Qc2 {[%emt 0:04:48]} Rd8 {[%emt 0:00:24]} 24. Rd1 {[%emt 0:00:40]} Rxd1+ {[%emt 0:00:25]} 25. Qxd1 {[%emt 0:00:02]} g6 {[%emt 0:01:59]} 26. Qc2 {[%emt 0:00:20]} Kg7 {[%emt 0:00:13]} 27. Kg2 {[%emt 0:01:56]} a5 {[%emt 0:00:51]} 28. Kf3 {[%emt 0:04:08]} e5 {[%emt 0:04:59]} 29. a3 {[%emt 0:02:28]} Qd4 {[%emt 0:00:48]} 30. e3 {[%emt 0:03:33]} Qd5+ {[%emt 0:00:08]} 31. Qe4 {[%emt 0:00:20]} Qc5 {[%emt 0:06:03]} 32. b4 {[%emt 0:00:24]} axb4 {[%emt 0:00:10]} 33. axb4 {[%emt 0:01:23]} Qc3 {[%emt 0:00:10]} 34. Qd5 {[%emt 0:00:11]} Qxb4 {[%emt 0:01:22]} 35. Qxe5+ {[%emt 0:00:01]} f6 {[%emt 0:02:31]} 36. Qc7+ {[%emt 0:00:05]} Kh6 {[%emt 0:00:55]} 37. Qd8 {[%emt 0:01:51]} Kg7 {[%emt 0:00:33]} 38. Qd7+ {[%emt 0:00:10]} Kh6 {[%emt 0:00:25]} 39. Qd8 {[%emt 0:00:05]} f5 {[%emt 0:00:38]} 40. h4 {[%emt 0:01:21]} Qe4+ {[%emt 0:00:39]} 41. Ke2 {[%emt 0:00:01]} b4 {[%emt 0:00:28]} 42. Qf8+ {[%emt 0:00:57]} Kh5 {[%emt 0:00:05]} 43. Qf6 {[%emt 0:00:21]} Kg4 {[%emt 0:00:56]} 44. Qg5+ {[%emt 0:00:39]} Kh3 {[%emt 0:00:03]} 45. Qf6 {[%emt 0:00:33]} Kg2 {[%emt 0:00:39]} 46. Qb2 {[%emt 0:00:30]} Qc4+ {[%emt 0:00:08]} 47. Kd2 {[%emt 0:00:12]} Qc3+ {[%emt 0:00:50]} 48. Qxc3 {[%emt 0:00:05]} bxc3+ {[%emt 0:00:03]} 49. Kxc3 {[%emt 0:00:06]} Kxf2 {[%emt 0:00:05]} 50. Kd4 0-1

[Event "XII Paracin Festival 2019"]
[Site "Paracin"]
[Date "2019.07.06"]
[Round "2.9"]
[White "Jocev, Milan"]
[Black "Petrov, Martin"]
[Result "0-1"]
[ECO "A45"]
[WhiteElo "2297"]
[BlackElo "2480"]
[Annotator "ChessBase"]
[PlyCount "94"]
[EventDate "2019.07.05"]
[EventType "swiss"]
[EventCountry "SRB"]
[SourceTitle "playchess.com"]
[Source "ChessBase"]
[SourceQuality "1"]
[TimeControl "5400+30"]

1. d4 {[%emt 0:00:00]} Nf6 {[%emt 0:00:00]} 2. Bg5 {[%emt 0:00:00]} e6 {[%emt 0:00:44]} 3. Nd2 {[%emt 0:00:15]} h6 {[%emt 0:00:26]} 4. Bxf6 {[%emt 0:00:24]} Qxf6 {[%emt 0:00:06]} 5. e3 {[%emt 0:00:16]} b6 {[%emt 0:03:58]} 6. Qf3 {[%emt 0:01:20]} Qxf3 {[%emt 0:01:53]} 7. Ngxf3 {[%emt 0:00:09]} Bb7 {[%emt 0:00:07]} 8. Bd3 {[%emt 0:01:28]} c5 {[%emt 0:05:09]} 9. c3 {[%emt 0:01:40]} Nc6 {[%emt 0:00:25]} 10. O-O {[%emt 0:01:24]} g5 {[%emt 0:07:01]} 11. Nc4 {[%emt 0:02:28]} g4 {[%emt 0:04:16]} 12. Ne1 {[%emt 0:02:21]} Ke7 {[%emt 0:04:19]} 13. f3 {[%emt 0:02:10]} gxf3 {[%emt 0:02:59]} 14. Nxf3 {[%emt 0:00:51]} Bg7 {[%emt 0:00:06]} 15. a4 {[%emt 0:04:01]} Rag8 {[%emt 0:06:18]} 16. Rf2 {[%emt 0:06:46]} d5 {[%emt 0:05:05]} 17. Ncd2 {[%emt 0:01:04]} f5 {[%emt 0:00:31]} 18. Kf1 {[%emt 0:04:06]} Bf6 {[%emt 0:10:39]} 19. g3 {[%emt 0:01:45]} h5 {[%emt 0:01:08]} 20. Ke2 {[%emt 0:00:29]} a5 {[%emt 0:05:08]} 21. Nh4 {[%emt 0:05:03]} Nd8 {[%emt 0:05:59]} 22. Ndf3 {[%emt 0:02:42]} Nf7 {[%emt 0:00:11]} 23. Ng2 {[%emt 0:00:48]} Nd6 {[%emt 0:01:55]} 24. Nf4 {[%emt 0:01:40]} Bc6 {[%emt 0:01:41]} 25. Bc2 {[%emt 0:05:11]} Be8 {[%emt 0:00:09]} 26. Rg2 {[%emt 0:07:43]} Rg7 {[%emt 0:04:36]} 27. Nd3 {[%emt 0:05:01]} Ne4 {[%emt 0:00:18]} 28. Rag1 {[%emt 0:01:44]} Rhg8 {[%emt 0:00:57]} 29. Nf4 {[%emt 0:00:57]} Kd6 {[%emt 0:01:23]} 30. Nd2 {[%emt 0:01:57]} Rc7 {[%emt 0:07:15]} 31. Nxe4+ {[%emt 0:01:15]} fxe4 {[%emt 0:00:19]} 32. Kd2 {[%emt 0:00:10]} cxd4 {[%emt 0:02:33]} 33. exd4 {[%emt 0:00:43]} Bg5 {[%emt 0:00:23]} 34. Ke2 {[%emt 0:05:13]} Rf8 {[%emt 0:00:54]} 35. Nh3 {[%emt 0:00:37]} Bh6 {[%emt 0:00:05]} 36. Rf2 {[%emt 0:01:34]} Rxf2+ {[%emt 0:00:11]} 37. Nxf2 {[%emt 0:00:39]} b5 {[%emt 0:00:05]} 38. g4 {[%emt 0:03:41]} bxa4 {[%emt 0:03:13]} 39. g5 {[%emt 0:00:34]} Bg7 {[%emt 0:00:04]} 40. Ra1 {[%emt 0:01:12]} Rc4 {[%emt 0:04:29]} 41. Kd2 {[%emt 0:02:17]} e5 {[%emt 0:00:32]} 42. dxe5+ {[%emt 0:05:14]} Bxe5 {[%emt 0:00:04]} 43. Nd1 {[%emt 0:00:09]} Bf4+ {[%emt 0:00:28]} 44. Ke2 {[%emt 0:00:35]} Bb5 {[%emt 0:00:36]} 45. Kf2 {[%emt 0:00:20]} Bxg5 {[%emt 0:00:31]} 46. b3 {[%emt 0:02:11]} axb3 {[%emt 0:00:52]} 47. Bxb3 {[%emt 0:00:06]} e3+ {[%emt 0:00:04]} 0-1